[Event "Early-Titled-Tuesday-Blitz-January-16-2024"]
[Site "Chess.com"]
[Date "2024.01.16"]
[Round "5"]
[White "missponyo10"]
[Black "RaugintaBulba"]
[Result "1-0"]
[WhiteElo "2274"]
[BlackElo "2453"]
[TimeControl "180+1"]
[EndTime "8:57:26 PST"]
[Termination "missponyo10 won on time"]

1. e4 {[%clk 0:03:00.9]} 1... c5 {[%clk 0:02:56.3]} 2. Nf3 {[%clk 0:03:00.8]}
2... d6 {[%clk 0:02:56.3]} 3. d4 {[%clk 0:03:01.2]} 3... cxd4 {[%clk 0:02:57]}
4. Nxd4 {[%clk 0:03:02.1]} 4... Nf6 {[%clk 0:02:57.6]} 5. Nc3 {[%clk 0:03:02.8]}
5... Nc6 {[%clk 0:02:58.3]} 6. f4 {[%clk 0:03:02.8]} 6... g6 {[%clk 0:02:50.2]}
7. Nf3 {[%clk 0:03:03.7]} 7... Bg7 {[%clk 0:02:50]} 8. Bd3 {[%clk 0:03:03.5]}
8... O-O {[%clk 0:02:47.7]} 9. O-O {[%clk 0:03:04.4]} 9... Bd7 {[%clk
0:02:29.7]} 10. Kh1 {[%clk 0:03:03.1]} 10... Rc8 {[%clk 0:02:27]} 11. Qe1 {[%clk
0:03:03.6]} 11... Na5 {[%clk 0:02:23]} 12. Qh4 {[%clk 0:03:02.5]} 12... Nc4
{[%clk 0:02:14.2]} 13. e5 {[%clk 0:02:55.4]} 13... dxe5 {[%clk 0:02:07.8]} 14.
fxe5 {[%clk 0:02:56.3]} 14... Ng4 {[%clk 0:02:04.7]} 15. Bg5 {[%clk 0:02:49.1]}
15... f6 {[%clk 0:01:48.5]} 16. exf6 {[%clk 0:02:50]} 16... exf6 {[%clk
0:01:48.8]} 17. Bc1 {[%clk 0:02:45.5]} 17... Nce3 {[%clk 0:01:42]} 18. Re1
{[%clk 0:02:42.2]} 18... g5 {[%clk 0:01:01.4]} 19. Qg3 {[%clk 0:02:41.6]} 19...
Nc4 {[%clk 0:00:36.4]} 20. h3 {[%clk 0:02:32.6]} 20... Nge3 {[%clk 0:00:27.7]}
21. Bxe3 {[%clk 0:02:31.3]} 21... Nxb2 {[%clk 0:00:25.4]} 22. Nd5 {[%clk
0:02:25]} 22... Nxd3 {[%clk 0:00:23.2]} 23. cxd3 {[%clk 0:02:25.9]} 23... Bxh3
{[%clk 0:00:21.5]} 24. Qxh3 {[%clk 0:02:19.7]} 24... Qxd5 {[%clk 0:00:21.1]} 25.
d4 {[%clk 0:02:18.6]} 25... Rc2 {[%clk 0:00:17.9]} 26. Bg1 {[%clk 0:02:15.6]}
26... Rfc8 {[%clk 0:00:13.2]} 27. Re7 {[%clk 0:02:10.4]} 27... R2c7 {[%clk
0:00:02.4]} 28. Rae1 {[%clk 0:02:09]} 28... Rxe7 {[%clk 0:00:02.4]} 29. Qxc8+
{[%clk 0:02:08.5]} 29... Kf7 {[%clk 0:00:02.8]} 30. Rxe7+ {[%clk 0:02:02.4]}
30... Kxe7 {[%clk 0:00:03.7]} 31. Qb8 {[%clk 0:02:01.3]} 31... a6 {[%clk
0:00:03.4]} 32. Nh2 {[%clk 0:01:59.1]} 32... h5 {[%clk 0:00:03.4]} 33. Qc7+
{[%clk 0:01:59.2]} 33... Qd7 {[%clk 0:00:03.2]} 34. Qc5+ {[%clk 0:01:57.7]}
34... Kf7 {[%clk 0:00:02.9]} 35. d5 {[%clk 0:01:55.8]} 35... g4 {[%clk
0:00:03.3]} 36. d6 {[%clk 0:01:53.7]} 36... Kg6 {[%clk 0:00:02.3]} 37. Qc7
{[%clk 0:01:51.3]} 37... Qf5 {[%clk 0:00:01.4]} 38. d7 {[%clk 0:01:46.6]} 38...
g3 {[%clk 0:00:01.8]} 39. d8=Q {[%clk 0:01:46.6]} 39... gxh2 {[%clk 0:00:02.2]}
40. Qxh2 {[%clk 0:01:47.3]} 40... Qg4 {[%clk 0:00:01.4]} 41. Qd3+ {[%clk
0:01:46.2]} 41... Kf7 {[%clk 0:00:01.2]} 42. Qc7+ {[%clk 0:01:46.1]} 42... Kg8
{[%clk 0:00:01.4]} 43. Qcc4+ {[%clk 0:01:43.8]} 1-0

[Event "Early-Titled-Tuesday-Blitz-January-16-2024"]
[Site "Chess.com"]
[Date "2024.01.16"]
[Round "5"]
[White "Martial2008"]
[Black "JimDiGrease"]
[Result "0-1"]
[WhiteElo "2728"]
[BlackElo "2995"]
[TimeControl "180+1"]
[EndTime "8:57:28 PST"]
[Termination "JimDiGrease won by resignation"]

1. d4 {[%clk 0:03:00.9]} 1... d5 {[%clk 0:02:59.4]} 2. Nf3 {[%clk 0:03:01.2]}
2... Nf6 {[%clk 0:02:59.6]} 3. Bf4 {[%clk 0:03:01.9]} 3... c5 {[%clk 0:02:59.6]}
4. e3 {[%clk 0:03:02.5]} 4... Nc6 {[%clk 0:03:00.1]} 5. Nbd2 {[%clk 0:03:03.2]}
5... Qb6 {[%clk 0:03:00.1]} 6. dxc5 {[%clk 0:03:03.6]} 6... Qxb2 {[%clk
0:03:00.4]} 7. Rb1 {[%clk 0:03:04.1]} 7... Qc3 {[%clk 0:03:00.7]} 8. Bb5 {[%clk
0:03:04.7]} 8... e6 {[%clk 0:03:01.3]} 9. O-O {[%clk 0:03:02.9]} 9... Be7 {[%clk
0:03:01.7]} 10. e4 {[%clk 0:03:03.4]} 10... O-O {[%clk 0:03:01.8]} 11. e5 {[%clk
0:03:03.8]} 11... Nd7 {[%clk 0:03:02.3]} 12. Nb3 {[%clk 0:02:56.8]} 12... Qb4
{[%clk 0:03:02.1]} 13. Nfd4 {[%clk 0:02:54.3]} 13... Nxd4 {[%clk 0:03:00.9]} 14.
Nxd4 {[%clk 0:02:52.2]} 14... Qxc5 {[%clk 0:03:00.3]} 15. Bd3 {[%clk 0:02:52.7]}
15... g6 {[%clk 0:02:55.5]} 16. Be3 {[%clk 0:02:40]} 16... Qc7 {[%clk
0:02:44.4]} 17. f4 {[%clk 0:02:30]} 17... Nc5 {[%clk 0:02:44.4]} 18. Qd2 {[%clk
0:02:14.9]} 18... Bd7 {[%clk 0:02:40.8]} 19. Kh1 {[%clk 0:01:55]} 19... Rac8
{[%clk 0:02:40]} 20. g4 {[%clk 0:01:38.7]} 20... b6 {[%clk 0:02:34.1]} 21. f5
{[%clk 0:01:34.4]} 21... Qxe5 {[%clk 0:02:08.4]} 22. Rbe1 {[%clk 0:01:25.5]}
22... Ne4 {[%clk 0:01:51.9]} 23. Qg2 {[%clk 0:01:25.6]} 23... Bc5 {[%clk
0:01:40.7]} 24. Nf3 {[%clk 0:01:19.2]} 24... Qg7 {[%clk 0:01:36.4]} 25. Bxe4
{[%clk 0:00:47.5]} 25... dxe4 {[%clk 0:01:34.3]} 26. Ng5 {[%clk 0:00:47.8]}
26... exf5 {[%clk 0:01:18.2]} 27. gxf5 {[%clk 0:00:45.8]} 27... Bxe3 {[%clk
0:01:18.2]} 28. f6 {[%clk 0:00:32.2]} 28... Qh6 {[%clk 0:01:09.7]} 29. Rxe3
{[%clk 0:00:32]} 29... Rc5 {[%clk 0:01:08.2]} 30. Rg1 {[%clk 0:00:24.6]} 30...
Rf5 {[%clk 0:00:58.1]} 31. Rh3 {[%clk 0:00:17.3]} 31... Qxg5 {[%clk 0:00:57]}
0-1

[Event "Early-Titled-Tuesday-Blitz-January-16-2024"]
[Site "Chess.com"]
[Date "2024.01.16"]
[Round "5"]
[White "N4700000"]
[Black "carloseduar100"]
[Result "0-1"]
[WhiteElo "2424"]
[BlackElo "2269"]
[TimeControl "180+1"]
[EndTime "8:57:36 PST"]
[Termination "carloseduar100 won by resignation"]

1. e4 {[%clk 0:03:00.9]} 1... e6 {[%clk 0:02:51.7]} 2. Nf3 {[%clk 0:02:59.4]}
2... d5 {[%clk 0:02:51.9]} 3. e5 {[%clk 0:02:59.3]} 3... c5 {[%clk 0:02:51.3]}
4. b4 {[%clk 0:02:59.8]} 4... cxb4 {[%clk 0:02:52.2]} 5. a3 {[%clk 0:02:58.1]}
5... d4 {[%clk 0:02:51.2]} 6. Bd3 {[%clk 0:02:45.9]} 6... Nc6 {[%clk 0:02:50.7]}
7. O-O {[%clk 0:02:45]} 7... Nge7 {[%clk 0:02:46.4]} 8. axb4 {[%clk 0:02:39.1]}
8... Ng6 {[%clk 0:02:46.2]} 9. b5 {[%clk 0:02:26]} 9... Ncxe5 {[%clk 0:02:45.9]}
10. Nxe5 {[%clk 0:02:25.7]} 10... Nxe5 {[%clk 0:02:45.5]} 11. Be4 {[%clk
0:02:23.4]} 11... Bd6 {[%clk 0:02:41.5]} 12. Ba3 {[%clk 0:02:12]} 12... O-O
{[%clk 0:02:09.4]} 13. d3 {[%clk 0:02:04.9]} 13... f5 {[%clk 0:02:04.8]} 14. Bf3
{[%clk 0:02:04.7]} 14... Nxf3+ {[%clk 0:02:05]} 15. Qxf3 {[%clk 0:02:04.1]}
15... Bxa3 {[%clk 0:02:04.8]} 16. Nxa3 {[%clk 0:02:03.1]} 16... Rb8 {[%clk
0:01:53.8]} 17. Nc4 {[%clk 0:01:56.7]} 17... a6 {[%clk 0:01:49.5]} 18. Rfb1
{[%clk 0:01:43.3]} 18... axb5 {[%clk 0:01:31.4]} 19. Rxb5 {[%clk 0:01:42.3]}
19... Qc7 {[%clk 0:01:24.4]} 20. Rab1 {[%clk 0:01:21.6]} 20... Rf7 {[%clk
0:01:08.3]} 21. h3 {[%clk 0:01:14.3]} 21... b6 {[%clk 0:00:59.7]} 22. Rxb6
{[%clk 0:01:09.2]} 22... Rxb6 {[%clk 0:00:59.1]} 23. Rxb6 {[%clk 0:01:08.2]}
23... Bb7 {[%clk 0:01:00]} 24. Qd1 {[%clk 0:00:19.4]} 24... Bd5 {[%clk
0:00:59.7]} 25. Rb4 {[%clk 0:00:15]} 25... h6 {[%clk 0:00:56.5]} 26. Qb1 {[%clk
0:00:14.4]} 26... Qf4 {[%clk 0:00:56.3]} 27. Rb8+ {[%clk 0:00:11.4]} 27... Kh7
{[%clk 0:00:56.2]} 28. Nb6 {[%clk 0:00:11.2]} 28... Qxb8 {[%clk 0:00:51]} 0-1

[Event "Early-Titled-Tuesday-Blitz-January-16-2024"]
[Site "Chess.com"]
[Date "2024.01.16"]
[Round "5"]
[White "FranciscodelaF"]
[Black "Alex_Terzi"]
[Result "1-0"]
[WhiteElo "2275"]
[BlackElo "2408"]
[TimeControl "180+1"]
[EndTime "8:57:37 PST"]
[Termination "FranciscodelaF won on time"]

1. d4 {[%clk 0:03:00.9]} 1... d5 {[%clk 0:02:58.7]} 2. Nf3 {[%clk 0:03:00.5]}
2... Nf6 {[%clk 0:02:57.4]} 3. Bf4 {[%clk 0:02:59.6]} 3... e6 {[%clk 0:02:57]}
4. e3 {[%clk 0:02:59.4]} 4... Bd6 {[%clk 0:02:52.2]} 5. Ne5 {[%clk 0:02:58.6]}
5... Nbd7 {[%clk 0:02:48.3]} 6. c3 {[%clk 0:02:48.1]} 6... O-O {[%clk
0:02:47.3]} 7. Bd3 {[%clk 0:02:47.3]} 7... h6 {[%clk 0:02:45.1]} 8. Nd2 {[%clk
0:02:40.9]} 8... c5 {[%clk 0:02:39.5]} 9. Nxf7 {[%clk 0:02:36.7]} 9... Rxf7
{[%clk 0:02:27.9]} 10. Bxd6 {[%clk 0:02:35.6]} 10... cxd4 {[%clk 0:02:20]} 11.
exd4 {[%clk 0:02:34.4]} 11... Nb6 {[%clk 0:02:19.2]} 12. Bg3 {[%clk 0:02:32.1]}
12... Re7 {[%clk 0:01:57.3]} 13. O-O {[%clk 0:02:24.6]} 13... Bd7 {[%clk
0:01:10.7]} 14. Re1 {[%clk 0:02:20.8]} 14... Bc6 {[%clk 0:01:08.4]} 15. Nf3
{[%clk 0:02:16.2]} 15... Nbd7 {[%clk 0:01:01.8]} 16. Bc2 {[%clk 0:02:10.7]}
16... Qb6 {[%clk 0:00:31.1]} 17. Rb1 {[%clk 0:02:01.8]} 17... Ree8 {[%clk
0:00:16.9]} 18. Ne5 {[%clk 0:01:34.7]} 18... Ne4 {[%clk 0:00:11.6]} 19. Bxe4
{[%clk 0:01:12.4]} 19... dxe4 {[%clk 0:00:08.4]} 20. Nxd7 {[%clk 0:01:11.8]}
20... Bxd7 {[%clk 0:00:07.2]} 21. Rxe4 {[%clk 0:01:11.6]} 21... Bc6 {[%clk
0:00:07.2]} 22. Rg4 {[%clk 0:01:04.6]} 22... Bd5 {[%clk 0:00:06.6]} 23. Be5
{[%clk 0:01:01.7]} 23... Re7 {[%clk 0:00:05.1]} 24. Qd2 {[%clk 0:00:57.1]} 24...
Kh7 {[%clk 0:00:02.4]} 25. a3 {[%clk 0:00:49.5]} 25... Qc6 {[%clk 0:00:01.2]}
26. Re1 {[%clk 0:00:46.2]} 1-0

[Event "Early-Titled-Tuesday-Blitz-January-16-2024"]
[Site "Chess.com"]
[Date "2024.01.16"]
[Round "5"]
[White "Yushko_Olga"]
[Black "talaicito"]
[Result "1-0"]
[WhiteElo "2115"]
[BlackElo "2276"]
[TimeControl "180+1"]
[EndTime "8:57:38 PST"]
[Termination "Yushko_Olga won on time"]

1. d4 {[%clk 0:03:00]} 1... e6 {[%clk 0:02:55.8]} 2. c4 {[%clk 0:03:00.1]} 2...
f5 {[%clk 0:02:53.9]} 3. g3 {[%clk 0:02:58.5]} 3... Nf6 {[%clk 0:02:53.7]} 4.
Bg2 {[%clk 0:02:57.8]} 4... Bb4+ {[%clk 0:02:48.3]} 5. Bd2 {[%clk 0:02:48.3]}
5... a5 {[%clk 0:02:42.6]} 6. Nf3 {[%clk 0:02:39.5]} 6... Ne4 {[%clk 0:02:31.9]}
7. O-O {[%clk 0:02:38.9]} 7... O-O {[%clk 0:02:23.3]} 8. Bxb4 {[%clk 0:02:32.4]}
8... axb4 {[%clk 0:02:22.5]} 9. Qb3 {[%clk 0:02:29]} 9... Qe7 {[%clk 0:01:58.1]}
10. Nbd2 {[%clk 0:02:18.6]} 10... Nxd2 {[%clk 0:01:28.5]} 11. Nxd2 {[%clk
0:02:15.8]} 11... Na6 {[%clk 0:01:27.8]} 12. e4 {[%clk 0:02:10.2]} 12... c5
{[%clk 0:01:04.7]} 13. exf5 {[%clk 0:02:03.6]} 13... Rxf5 {[%clk 0:00:59.6]} 14.
d5 {[%clk 0:02:01.2]} 14... d6 {[%clk 0:00:46.3]} 15. dxe6 {[%clk 0:01:55.3]}
15... Bxe6 {[%clk 0:00:45.7]} 16. Rae1 {[%clk 0:01:53.3]} 16... Qd7 {[%clk
0:00:24.1]} 17. Bxb7 {[%clk 0:01:37.2]} 17... Qxb7 {[%clk 0:00:22.6]} 18. Rxe6
{[%clk 0:01:36.8]} 18... d5 {[%clk 0:00:18.9]} 19. Qe3 {[%clk 0:01:10.5]} 19...
d4 {[%clk 0:00:16.2]} 20. Re8+ {[%clk 0:01:09]} 20... Rxe8 {[%clk 0:00:13.7]}
21. Qxe8+ {[%clk 0:01:09.9]} 21... Rf8 {[%clk 0:00:14.1]} 22. Qe6+ {[%clk
0:01:07.1]} 22... Kh8 {[%clk 0:00:14.3]} 23. Ne4 {[%clk 0:01:01.8]} 23... Nc7
{[%clk 0:00:08.3]} 24. Qe7 {[%clk 0:01:00.1]} 24... Re8 {[%clk 0:00:07.9]} 25.
Nxc5 {[%clk 0:00:57.7]} 25... Rxe7 {[%clk 0:00:08.1]} 26. Nxb7 {[%clk 0:00:58]}
26... Re2 {[%clk 0:00:08.7]} 27. b3 {[%clk 0:00:55.1]} 27... Rxa2 {[%clk
0:00:05.1]} 28. Nc5 {[%clk 0:00:53.5]} 1-0

[Event "Early-Titled-Tuesday-Blitz-January-16-2024"]
[Site "Chess.com"]
[Date "2024.01.16"]
[Round "5"]
[White "dropstoneDP"]
[Black "I_am_Javi"]
[Result "0-1"]
[WhiteElo "3025"]
[BlackElo "2784"]
[TimeControl "180+1"]
[EndTime "8:57:41 PST"]
[Termination "I_am_Javi won by resignation"]

1. e4 {[%clk 0:03:00.9]} 1... e5 {[%clk 0:02:59.1]} 2. Nf3 {[%clk 0:03:01.1]}
2... Nc6 {[%clk 0:02:59.2]} 3. Bb5 {[%clk 0:03:00.7]} 3... f5 {[%clk 0:02:59.8]}
4. d3 {[%clk 0:02:59.2]} 4... fxe4 {[%clk 0:02:58.6]} 5. dxe4 {[%clk 0:03:00.1]}
5... Nf6 {[%clk 0:02:59.1]} 6. O-O {[%clk 0:02:58.5]} 6... d6 {[%clk 0:02:59.5]}
7. Nc3 {[%clk 0:02:57.1]} 7... Bg4 {[%clk 0:02:59.1]} 8. h3 {[%clk 0:02:53.9]}
8... Bh5 {[%clk 0:02:57.3]} 9. g4 {[%clk 0:02:53.2]} 9... Bg6 {[%clk 0:02:54.9]}
10. Nh4 {[%clk 0:02:51.1]} 10... Qd7 {[%clk 0:02:30]} 11. Bg5 {[%clk 0:02:20.2]}
11... Be7 {[%clk 0:02:12.8]} 12. Qd3 {[%clk 0:01:59.7]} 12... a6 {[%clk
0:01:37]} 13. Bxc6 {[%clk 0:01:57.6]} 13... bxc6 {[%clk 0:01:34.4]} 14. f4
{[%clk 0:01:55.2]} 14... exf4 {[%clk 0:01:23.3]} 15. Rxf4 {[%clk 0:01:54.5]}
15... Nh5 {[%clk 0:00:38.3]} 16. gxh5 {[%clk 0:01:44.9]} 16... Bxg5 {[%clk
0:00:38.7]} 17. Rg4 {[%clk 0:01:45.4]} 17... Bxh4 {[%clk 0:00:39]} 18. hxg6
{[%clk 0:01:45.2]} 18... Bf6 {[%clk 0:00:36.6]} 19. gxh7 {[%clk 0:01:42.8]}
19... Be5 {[%clk 0:00:34.5]} 20. Rf1 {[%clk 0:01:41.7]} 20... Rxh7 {[%clk
0:00:26]} 21. Ne2 {[%clk 0:01:42.1]} 21... Qe6 {[%clk 0:00:18.2]} 22. b3 {[%clk
0:01:40]} 22... O-O-O {[%clk 0:00:12.9]} 23. Qxa6+ {[%clk 0:01:37.2]} 23... Kb8
{[%clk 0:00:12.8]} 24. Nf4 {[%clk 0:01:03.6]} 24... Bd4+ {[%clk 0:00:12.3]} 25.
Kh2 {[%clk 0:00:59.1]} 25... Qxg4 {[%clk 0:00:12.3]} 26. Qxc6 {[%clk 0:00:32.7]}
26... Rxh3+ {[%clk 0:00:12.6]} 27. Nxh3 {[%clk 0:00:32.8]} 27... Be5+ {[%clk
0:00:13.3]} 0-1

[Event "Early-Titled-Tuesday-Blitz-January-16-2024"]
[Site "Chess.com"]
[Date "2024.01.16"]
[Round "5"]
[White "Trojan-Knight"]
[Black "XDPS"]
[Result "0-1"]
[WhiteElo "2681"]
[BlackElo "2906"]
[TimeControl "180+1"]
[EndTime "8:57:41 PST"]
[Termination "XDPS won by resignation"]

1. d4 {[%clk 0:03:00.1]} 1... d5 {[%clk 0:02:59.7]} 2. c4 {[%clk 0:03:00]} 2...
c6 {[%clk 0:03:00.1]} 3. Nc3 {[%clk 0:03:00]} 3... Nf6 {[%clk 0:03:00.3]} 4. Nf3
{[%clk 0:02:59.7]} 4... e6 {[%clk 0:03:00.5]} 5. Bg5 {[%clk 0:02:59.9]} 5...
Nbd7 {[%clk 0:02:59.6]} 6. e3 {[%clk 0:02:59.7]} 6... Qa5 {[%clk 0:03:00]} 7.
cxd5 {[%clk 0:02:59.2]} 7... Nxd5 {[%clk 0:02:59.7]} 8. Qd2 {[%clk 0:02:59.2]}
8... Bb4 {[%clk 0:02:58.8]} 9. Rc1 {[%clk 0:02:59.8]} 9... Nxc3 {[%clk
0:02:58.7]} 10. bxc3 {[%clk 0:03:00.7]} 10... Ba3 {[%clk 0:02:59.3]} 11. Rb1
{[%clk 0:03:00.7]} 11... b6 {[%clk 0:02:59.9]} 12. Bd3 {[%clk 0:02:59.3]} 12...
Ba6 {[%clk 0:03:00]} 13. c4 {[%clk 0:02:59.7]} 13... Qxd2+ {[%clk 0:02:59.1]}
14. Nxd2 {[%clk 0:03:00.6]} 14... e5 {[%clk 0:02:50]} 15. O-O {[%clk 0:02:18.7]}
15... Be7 {[%clk 0:02:47.6]} 16. Bxe7 {[%clk 0:02:14.2]} 16... Kxe7 {[%clk
0:02:48.5]} 17. Rfd1 {[%clk 0:02:10.7]} 17... Rhd8 {[%clk 0:02:45.9]} 18. f4
{[%clk 0:01:58.7]} 18... exd4 {[%clk 0:02:45.7]} 19. exd4 {[%clk 0:01:58.2]}
19... Nf6 {[%clk 0:02:44.9]} 20. Nf3 {[%clk 0:01:58.5]} 20... Kf8 {[%clk
0:02:41.3]} 21. Bf1 {[%clk 0:01:52.9]} 21... Ne4 {[%clk 0:02:32.9]} 22. Re1
{[%clk 0:01:50.3]} 22... Nd6 {[%clk 0:02:23.6]} 23. Ne5 {[%clk 0:01:49]} 23...
Rac8 {[%clk 0:02:15.9]} 24. c5 {[%clk 0:01:49.2]} 24... Bxf1 {[%clk 0:02:15.4]}
25. Kxf1 {[%clk 0:01:47.1]} 25... Nb5 {[%clk 0:02:04.8]} 26. cxb6 {[%clk
0:01:29]} 26... axb6 {[%clk 0:02:05.7]} 27. a4 {[%clk 0:01:21.9]} 27... Nxd4
{[%clk 0:02:02.4]} 28. Rxb6 {[%clk 0:01:21.8]} 28... f6 {[%clk 0:01:48]} 29. Nc4
{[%clk 0:01:20.7]} 29... Rc7 {[%clk 0:01:39.7]} 30. Reb1 {[%clk 0:01:15.9]}
30... Ne6 {[%clk 0:01:35.4]} 31. Na5 {[%clk 0:01:06.3]} 31... Nxf4 {[%clk
0:01:21.9]} 32. Nxc6 {[%clk 0:01:02.5]} 32... Rd6 {[%clk 0:01:16.5]} 33. Rb8+
{[%clk 0:00:45.3]} 33... Kf7 {[%clk 0:01:16.9]} 34. Nd8+ {[%clk 0:00:44.2]}
34... Kg6 {[%clk 0:01:14.7]} 35. g3 {[%clk 0:00:37.4]} 35... Nd5 {[%clk
0:01:06.5]} 36. R8b7 {[%clk 0:00:25.8]} 36... Rxd8 {[%clk 0:01:05.3]} 37. Rxc7
{[%clk 0:00:24.3]} 37... Nxc7 {[%clk 0:01:06.2]} 38. Rb7 {[%clk 0:00:23.2]}
38... Nd5 {[%clk 0:01:06.3]} 39. a5 {[%clk 0:00:23]} 39... Ra8 {[%clk 0:01:06]}
40. Rb5 {[%clk 0:00:23.1]} 40... Ne3+ {[%clk 0:01:05.4]} 41. Ke2 {[%clk
0:00:21.6]} 41... Nc4 {[%clk 0:01:06.3]} 0-1

[Event "Early-Titled-Tuesday-Blitz-January-16-2024"]
[Site "Chess.com"]
[Date "2024.01.16"]
[Round "5"]
[White "LuminaryHunter"]
[Black "FMCASTE"]
[Result "0-1"]
[WhiteElo "2217"]
[BlackElo "2464"]
[TimeControl "180+1"]
[EndTime "8:57:42 PST"]
[Termination "FMCASTE won on time"]

1. d4 {[%clk 0:03:00.1]} 1... Nf6 {[%clk 0:02:58.5]} 2. Nf3 {[%clk 0:02:58.5]}
2... g6 {[%clk 0:02:57.9]} 3. Bf4 {[%clk 0:02:57.5]} 3... Bg7 {[%clk 0:02:56.1]}
4. Nc3 {[%clk 0:02:38.9]} 4... d5 {[%clk 0:02:55.6]} 5. e3 {[%clk 0:02:38.9]}
5... O-O {[%clk 0:02:54.6]} 6. Bd3 {[%clk 0:02:33.9]} 6... c5 {[%clk 0:02:53.6]}
7. dxc5 {[%clk 0:02:33.4]} 7... Qa5 {[%clk 0:02:44.3]} 8. O-O {[%clk 0:02:31.1]}
8... Qxc5 {[%clk 0:02:43.7]} 9. Nb5 {[%clk 0:02:26.3]} 9... Na6 {[%clk
0:02:33.8]} 10. c3 {[%clk 0:02:08.9]} 10... Bd7 {[%clk 0:02:28.5]} 11. Nfd4
{[%clk 0:02:07.3]} 11... Nh5 {[%clk 0:02:19.3]} 12. Rc1 {[%clk 0:01:35.8]} 12...
e5 {[%clk 0:02:16.9]} 13. Nb3 {[%clk 0:01:32.7]} 13... Qb6 {[%clk 0:02:10.3]}
14. Bg5 {[%clk 0:01:27.4]} 14... Bxb5 {[%clk 0:02:08.8]} 15. Bxb5 {[%clk
0:01:25.7]} 15... Qxb5 {[%clk 0:02:09.7]} 16. Be7 {[%clk 0:01:24.2]} 16... Rfe8
{[%clk 0:02:08.3]} 17. Ba3 {[%clk 0:01:22.9]} 17... Rad8 {[%clk 0:02:06.8]} 18.
Qg4 {[%clk 0:01:15.6]} 18... b6 {[%clk 0:02:03.7]} 19. c4 {[%clk 0:01:10.7]}
19... dxc4 {[%clk 0:01:46]} 20. Rxc4 {[%clk 0:01:04.9]} 20... Nf6 {[%clk
0:01:42.3]} 21. Qe2 {[%clk 0:01:04.7]} 21... h5 {[%clk 0:01:28.9]} 22. Rfc1
{[%clk 0:01:01.8]} 22... Nd5 {[%clk 0:01:05.6]} 23. Qf3 {[%clk 0:00:49]} 23...
Qd7 {[%clk 0:00:57.5]} 24. h3 {[%clk 0:00:47.6]} 24... b5 {[%clk 0:00:53.1]} 25.
Rc6 {[%clk 0:00:33.6]} 25... Nb8 {[%clk 0:00:48.3]} 26. R6c5 {[%clk 0:00:20.8]}
26... e4 {[%clk 0:00:47.5]} 27. Qd1 {[%clk 0:00:12.9]} 27... b4 {[%clk
0:00:47.7]} 28. Bxb4 {[%clk 0:00:04.4]} 28... Nxb4 {[%clk 0:00:47.6]} 29. Qxd7
{[%clk 0:00:01.7]} 29... Nxd7 {[%clk 0:00:48.5]} 0-1

[Event "Early-Titled-Tuesday-Blitz-January-16-2024"]
[Site "Chess.com"]
[Date "2024.01.16"]
[Round "5"]
[White "Soledadense88"]
[Black "Darkbluelord"]
[Result "1-0"]
[WhiteElo "2409"]
[BlackElo "2185"]
[TimeControl "180+1"]
[EndTime "8:57:46 PST"]
[Termination "Soledadense88 won by resignation"]

1. d4 {[%clk 0:03:00.9]} 1... c5 {[%clk 0:02:59.7]} 2. d5 {[%clk 0:03:00.8]}
2... d6 {[%clk 0:03:00.1]} 3. c4 {[%clk 0:03:00.8]} 3... b5 {[%clk 0:03:00.7]}
4. cxb5 {[%clk 0:02:59.7]} 4... a6 {[%clk 0:03:01.2]} 5. e3 {[%clk 0:02:53.6]}
5... Nf6 {[%clk 0:02:59.5]} 6. Nf3 {[%clk 0:02:53.1]} 6... g6 {[%clk 0:02:59.8]}
7. Nc3 {[%clk 0:02:52.8]} 7... Bg7 {[%clk 0:02:59.9]} 8. a4 {[%clk 0:02:52.9]}
8... O-O {[%clk 0:02:59]} 9. Ra3 {[%clk 0:02:52.8]} 9... axb5 {[%clk 0:02:57.8]}
10. Bxb5 {[%clk 0:02:52.6]} 10... Na6 {[%clk 0:02:57.2]} 11. O-O {[%clk
0:02:52]} 11... Nb4 {[%clk 0:02:57.3]} 12. Qe2 {[%clk 0:02:35.1]} 12... Bb7
{[%clk 0:02:56.5]} 13. Rd1 {[%clk 0:02:34.4]} 13... Nfxd5 {[%clk 0:02:49.8]} 14.
Nxd5 {[%clk 0:02:18.6]} 14... Nxd5 {[%clk 0:02:49.6]} 15. e4 {[%clk 0:02:14.4]}
15... Nb4 {[%clk 0:02:44.5]} 16. e5 {[%clk 0:02:14.1]} 16... Qc7 {[%clk
0:02:42.1]} 17. e6 {[%clk 0:02:11.3]} 17... Bxf3 {[%clk 0:02:28.7]} 18. Qxf3
{[%clk 0:02:03.4]} 18... fxe6 {[%clk 0:02:28.5]} 19. Qe4 {[%clk 0:01:57.9]}
19... e5 {[%clk 0:02:11.2]} 20. Bc4+ {[%clk 0:01:45.4]} 20... Kh8 {[%clk
0:02:10.4]} 21. Rh3 {[%clk 0:01:45.2]} 21... Rf5 {[%clk 0:01:48.3]} 22. Qxa8+
{[%clk 0:01:43.4]} 22... Rf8 {[%clk 0:01:47.9]} 23. Qe4 {[%clk 0:01:39.3]} 23...
Rf5 {[%clk 0:01:45.3]} 24. g4 {[%clk 0:01:18.4]} 24... Rf6 {[%clk 0:01:37.5]}
25. Bg5 {[%clk 0:01:01.7]} 25... d5 {[%clk 0:01:37.5]} 26. Bxd5 {[%clk
0:00:34.1]} 26... Rd6 {[%clk 0:01:37.6]} 27. Bb3 {[%clk 0:00:20]} 27... Rxd1+
{[%clk 0:01:31.7]} 28. Bxd1 {[%clk 0:00:20.9]} 28... Qd8 {[%clk 0:01:32.2]} 29.
Bf3 {[%clk 0:00:20.4]} 29... Qe8 {[%clk 0:01:23.6]} 30. Qa8 {[%clk 0:00:20.4]}
30... Qxa8 {[%clk 0:01:21.8]} 31. Bxa8 {[%clk 0:00:21.3]} 31... Nc2 {[%clk
0:01:20.3]} 32. a5 {[%clk 0:00:21.5]} 32... Nb4 {[%clk 0:01:18.7]} 33. Rb3
{[%clk 0:00:20.4]} 33... e4 {[%clk 0:01:15.1]} 34. Be3 {[%clk 0:00:18.6]} 34...
Na6 {[%clk 0:01:12]} 35. Bb7 {[%clk 0:00:18.2]} 35... Nc7 {[%clk 0:01:11.1]} 36.
Bxc5 {[%clk 0:00:18.4]} 36... Be5 {[%clk 0:01:10.7]} 37. Bb6 {[%clk 0:00:18.6]}
37... Ne6 {[%clk 0:01:07.4]} 38. a6 {[%clk 0:00:18.8]} 38... Nf4 {[%clk
0:01:04.2]} 39. a7 {[%clk 0:00:18.9]} 39... Ne2+ {[%clk 0:01:05.1]} 40. Kf1
{[%clk 0:00:18.7]} 40... Nc1 {[%clk 0:01:02.3]} 41. a8=Q+ {[%clk 0:00:18.5]}
41... Kg7 {[%clk 0:01:02.2]} 42. Rc3 {[%clk 0:00:17.5]} 42... Nd3 {[%clk
0:01:01.2]} 43. Qc8 {[%clk 0:00:15.2]} 1-0